bitfinex-derivatives/quotes_BNBF0:USTF0_20250424
["timestamp","ask_amount","ask_price","bid_price","bid_amount"]
[1745488503674,0.29190345,597.16,595.38,0.30820815]
[1745488503880,0.29190345,597.16,595.37,0.29190345]
[1745488504075,0.29190345,597.16,595.38,0.30821656]
[1745488504679,1.27462458,597.41,595.38,0.30821656]
[1745488504873,1.27462458,597.41,595.39,0.30821656]
[1745488505178,0.29186673,597.15,595.4,0.30821656]
[1745488505378,1.27462458,597.41,595.38,0.30821656]
[1745488505578,1.27462458,597.41,595.39,0.30821745]
[1745488505775,1.27462458,597.41,595.38,0.30821745]
[1745488505980,1.27462458,597.51,595.39,0.30821745]
[1745488506279,1.27462458,597.51,595.4,0.30821745]
[1745488506579,0.29185204,597.5,595.41,0.30821745]
[1745488506779,0.29185204,597.5,595.38,0.30821745]
[1745488506979,0.29185204,597.5,595.39,0.30821745]
[1745488507178,0.29185204,597.5,595.4,0.30821745]
[1745488507380,0.29185204,597.5,595.38,0.30821745]
[1745488507679,1.27462458,597.51,595.39,0.30821745]
[1745488507879,0.29185204,597.49,595.37,0.29185204]
[1745488508080,0.29185204,597.49,595.38,0.30821745]
[1745488510080,0.29185204,597.49,595.37,0.29185204]
[1745488510275,0.29185204,597.49,595.38,0.30821772]
[1745488510681,1.27462458,597.57,595.38,0.30821772]
[1745488510882,1.27462458,597.57,595.39,0.30821772]
[1745488511082,0.29186306,597.56,595.4,0.30821772]
[1745488511284,0.29186306,597.56,595.23,0.30821772]
[1745488511484,0.29186306,597.56,595.24,0.30821772]
[1745488511677,0.29186306,597.56,595.25,0.30821206]
[1745488511882,0.29186306,597.56,595.26,0.30821206]
[1745488512084,0.29186306,597.56,595.26,0.29185082]
[1745488512281,0.29186306,597.56,595.27,0.30821206]
[1745488513082,0.29186306,597.56,595.26,0.29185082]
[1745488513287,0.29186306,597.56,595.27,0.30819907]
[1745488516590,1.27462458,597.8,595.27,0.30819907]
[1745488516791,1.27462458,597.8,595.28,0.30819907]
[1745488517092,1.27462458,597.8,595.29,0.30819907]
[1745488517291,1.27462458,597.8,595.3,0.30819907]
[1745488517595,1.27462458,597.8,595.31,0.30819907]
[1745488517791,1.27462458,597.8,595.32,0.30820694]
[1745488517991,0.29184715,597.79,595.28,0.29184715]
[1745488518191,0.29184715,597.79,595.29,0.30820694]
[1745488518789,1.27462458,597.77,595.29,0.30820694]
[1745488519188,1.27462458,597.77,595.28,0.29184715]
[1745488519490,1.27462458,597.77,595.29,0.30820144]
[1745488521795,1.27462458,597.39,595.29,1.37375767]
[1745488521988,1.27462458,597.39,595.3,0.30820144]
[1745488523794,1.27462458,597.39,595.29,1.06555623]
[1745488523994,0.29185204,597.38,595.3,0.30817862]
[1745488525095,0.29185204,597.38,595.32,1.06555623]
[1745488525496,0.29185204,597.38,595.33,0.30817886]
[1745488525695,1.27462458,597.48,595.33,0.30817886]
[1745488525896,0.29183736,597.37,595.33,0.30817886]
[1745488526192,1.27462458,597.48,595.33,0.30817886]
[1745488526996,0.29183736,597.47,595.33,0.30817886]
[1745488528000,0.29183736,597.47,595.33,1.37373509]
[1745488528197,0.29183736,597.47,595.34,0.30817886]
[1745488528398,0.29183736,597.47,595.33,1.06555623]
[1745488528598,0.29183736,597.47,595.34,0.30816767]
[1745488529901,0.29183736,597.47,595.33,1.06555623]
[1745488530102,0.29183736,597.47,595.34,0.30816911]
[1745488530402,0.29183736,597.47,595.35,0.30816911]
[1745488530605,0.29183736,597.47,595.36,0.30816911]
[1745488530804,0.29183736,597.47,595.37,0.30816911]
[1745488530999,0.29183736,597.47,595.38,0.30816911]
[1745488531198,0.29183736,597.47,595.39,0.30816911]
[1745488531399,0.29183736,597.47,595.34,1.06555623]
[1745488531601,0.29183736,597.47,595.35,0.30816042]
[1745488531801,1.27462458,597.55,595.36,0.30816042]
[1745488532002,1.27462458,597.55,595.37,0.30816042]
[1745488532202,1.27462458,597.55,595.38,0.30816042]
[1745488532506,1.27462458,597.55,595.34,1.06555623]
[1745488532507,1.27462458,597.55,595.39,0.30816042]
[1745488532704,1.27462458,597.55,595.4,0.30816042]
[1745488532902,0.29181901,597.54,595.41,0.30816042]
[1745488533101,0.29181901,597.54,595.42,0.30815796]
[1745488533301,0.29181901,597.54,595.43,0.30815796]
[1745488533503,0.29181901,597.54,595.34,1.06555623]
[1745488533705,1.27462458,597.25,595.5,1.06555623]
[1745488533900,1.27462458,597.25,595.51,0.30815828]
[1745488534608,1.27462458,597.25,595.5,1.06555623]
[1745488534802,1.27462458,597.25,595.51,0.30815809]
[1745488536203,0.29181901,597.54,595.5,1.06555623]
[1745488536204,1.27462458,597.27,595.5,1.06555623]
[1745488536402,1.27462458,597.27,595.51,0.30814814]
[1745488536903,1.27462458,597.27,595.52,0.30814814]
[1745488537108,1.27462458,597.27,595.53,0.30814814]
[1745488537402,1.27462458,597.27,595.54,0.30814814]
[1745488537604,1.27462458,597.27,595.55,0.30814814]
[1745488537808,1.27462458,597.27,595.56,0.30814814]
[1745488538002,1.27462458,597.27,595.57,0.30814814]
[1745488538201,1.27462458,597.27,595.51,0.30814814]
[1745488538407,1.27462458,597.27,595.52,0.30814814]
[1745488538607,1.27462458,597.27,595.51,0.30814814]
[1745488538807,1.27462458,597.29,595.59,1.06555623]
[1745488539005,0.2918239,597.26,595.6,0.30814814]
[1745488540612,1.27462458,597.29,595.6,0.30814814]
[1745488540811,1.27462458,597.29,595.59,1.06555623]
[1745488541010,1.27462458,597.29,595.6,0.3081131]
[1745488541907,0.29180555,597.28,595.6,0.3081131]
[1745488542313,0.29180555,597.28,595.56,0.3081131]
[1745488542509,0.29180555,597.28,595.57,0.30811466]
[1745488542707,0.29180555,597.28,595.56,0.30811466]
[1745488542910,0.29180555,597.28,595.57,0.30811466]
[1745488543109,0.29180555,597.28,595.56,0.30811466]
[1745488543314,0.29180555,597.28,595.57,0.30811466]
[1745488543609,1.27462458,597.39,595.58,0.30811466]
[1745488543814,1.27462458,597.39,595.56,0.30811466]
[1745488544008,1.27462458,597.39,595.57,0.30812622]
[1745488544908,0.29179698,597.38,595.57,0.30812622]
[1745488545414,0.29179698,597.38,595.56,0.29179821]
[1745488545614,0.29179698,597.38,595.57,0.30812906]
[1745488546615,1.27462458,597.39,595.57,0.30812906]
[1745488546810,1.27462458,597.39,595.53,0.30812906]
[1745488547012,0.29179698,597.37,595.56,0.29179698]
[1745488547213,0.29179698,597.37,595.57,0.30812622]
[1745488547413,1.56642156,597.37,595.57,0.30812622]
[1745488549714,1.27462458,597.37,595.57,0.30812622]
[1745488549909,1.27462458,597.33,595.58,0.30812622]
[1745488550116,1.27462458,597.33,595.56,0.29179943]
[1745488550317,1.27462458,597.33,595.57,0.30812793]
[1745488552414,0.29179943,597.36,595.57,0.30812793]
[1745488552620,1.27462458,597.43,595.57,0.30812793]
[1745488552814,1.27462458,597.43,595.58,0.30812793]
[1745488553020,0.29179209,597.35,595.56,0.29179209]
[1745488553221,1.27462458,597.43,595.57,0.30812793]
[1745488553921,0.29179209,597.42,595.57,0.30812793]
[1745488554820,0.29179209,597.42,595.58,0.30814106]
[1745488555017,0.29179209,597.42,595.59,0.30814106]
[1745488555215,0.29179209,597.42,595.6,0.30814106]
[1745488555618,0.29179209,597.42,595.57,0.30814106]
[1745488556122,0.29179209,597.42,595.58,0.30814106]
[1745488556324,0.29179209,597.42,595.57,0.30814106]
[1745488556622,0.29179209,597.42,595.58,0.30814106]
[1745488556923,0.29179209,597.42,595.59,0.30814106]
[1745488557122,0.29179209,597.42,595.57,0.30814106]
[1745488557324,1.27462458,597.39,595.57,0.30814106]
[1745488558918,1.27462458,597.39,595.5,0.30814106]
[1745488559117,0.29179698,597.38,595.5,0.30814106]
[1745488559422,1.27462458,597.32,595.54,1.06555623]
[1745488559621,1.27462458,597.32,595.55,0.30813913]
[1745488560123,1.27462458,597.32,595.56,0.29180799]
[1745488560318,1.27462458,597.32,595.57,0.30813913]
[1745488560819,1.27462458,597.32,595.56,0.29180799]
[1745488561018,1.27462458,597.32,595.57,0.3081421]
[1745488561823,1.27462458,597.32,595.58,0.3081421]
[1745488562018,1.27462458,597.32,595.59,0.3081421]
[1745488562324,1.27462458,597.32,595.6,0.3081421]
[1745488562524,1.27462458,597.22,595.61,0.3081421]
[1745488562726,1.27462458,597.22,595.62,0.3081421]
[1745488562922,1.27462458,597.22,595.63,0.3081421]
[1745488563121,1.27462458,597.22,595.6,0.3081421]
[1745488563324,1.27462458,597.22,595.61,0.3081421]
[1745488563521,1.27462458,597.22,595.59,1.06555623]
[1745488563725,1.27462458,597.22,595.6,0.30812958]
[1745488565124,1.27462458,597.22,595.59,1.06555623]
[1745488565325,1.27462458,597.22,595.6,0.30807077]
[1745488565626,1.27462458,597.2,595.63,1.06555623]
[1745488565824,1.27462458,597.2,595.64,0.30807077]
[1745488566922,1.27462458,597.2,595.65,0.30807077]
[1745488567127,1.27462458,597.2,595.64,0.30807077]
[1745488567423,1.27462458,597.2,595.65,0.30807077]
[1745488567624,1.27462458,597.2,595.66,0.30807077]
[1745488567821,1.27462458,597.2,595.64,0.30807077]
[1745488568022,1.27462458,597.2,595.65,0.30807077]
[1745488568226,1.27462458,597.63,595.64,0.30807077]
[1745488568424,1.27462458,597.63,595.65,0.30807077]
[1745488568623,1.27462458,597.63,595.6,0.30807077]
[1745488568822,1.27462458,597.63,595.61,0.30807077]
[1745488569123,1.27462458,597.63,595.62,0.30807077]
[1745488569322,1.27462458,597.63,595.63,0.30807077]
[1745488569524,1.27462458,597.63,595.6,0.30807077]
[1745488569828,1.27462458,597.63,595.61,0.30807077]
[1745488570128,1.27462458,597.63,595.62,0.30807077]
[1745488570424,1.27462458,597.63,595.63,0.30807077]
[1745488570629,1.27462458,597.63,595.64,0.30807077]
[1745488570829,1.27462458,597.63,595.65,0.30807077]
[1745488571128,1.27462458,597.63,595.66,0.30807077]
[1745488571328,1.27462458,597.63,595.6,0.30807077]
[1745488571530,1.27462458,597.37,595.67,1.06555623]
[1745488571728,1.27462458,597.37,595.68,0.30807077]
[1745488573026,1.27462458,597.37,595.69,0.30807739]
[1745488573226,1.27462458,597.37,595.68,0.30807739]
[1745488573430,1.27462458,597.37,595.69,0.30807739]
[1745488573630,1.27462458,597.37,595.68,0.30807739]
[1745488574026,1.27462458,597.42,595.68,0.30807739]
[1745488574230,1.27462458,597.42,595.66,0.30807739]
[1745488574431,1.27462458,597.42,595.65,1.06555623]
[1745488574632,1.27462458,597.42,595.66,0.30809839]
[1745488576033,1.27462458,597.42,595.65,1.06555623]
[1745488576230,1.27462458,597.42,595.66,0.30809785]
[1745488576734,1.27462458,597.3,595.66,0.30809785]
[1745488580331,1.27462458,597.48,595.66,1.37365408]
[1745488580534,1.27462458,597.48,595.67,0.30809785]
[1745488580931,0.29174683,597.47,595.67,0.30809785]
[1745488582245,0.29174683,597.47,595.66,1.06555623]
[1745488582434,0.29174683,597.47,595.68,0.30806903]
[1745488582630,0.29174683,597.47,595.69,0.30806903]
[1745488582831,1.27462458,597.48,595.67,0.30806903]
[1745488583031,0.29174683,597.46,595.67,0.30806903]
[1745488583430,0.29174683,597.46,595.64,0.30806903]
[1745488583835,0.29174683,597.46,595.63,1.35730306]
[1745488584036,0.29174683,597.46,595.64,0.30806668]
[1745488585739,1.27462458,597.51,595.64,0.30806668]
[1745488585932,1.27462458,597.51,595.65,0.30806668]
[1745488586136,1.27462458,597.51,595.66,0.30806668]
[1745488586334,1.27462458,597.51,595.62,0.30806668]
[1745488586537,1.27462458,597.51,595.63,0.30806668]
[1745488586734,1.27462458,597.51,595.62,0.30806668]
[1745488587040,0.29174928,597.5,595.63,0.29174928]
[1745488587440,0.29174928,597.5,595.64,0.30805481]
[1745488588637,1.27462458,597.55,595.64,0.30805481]
[1745488588841,1.27462458,597.55,595.63,0.30805481]
[1745488589038,0.29174194,597.49,595.64,0.30805481]
[1745488591744,0.29174194,597.49,595.63,1.35729817]
[1745488591941,0.29174194,597.49,595.65,0.30805069]
[1745488592145,0.29174194,597.49,595.66,0.30805069]
[1745488592340,0.29174194,597.49,595.64,0.30805069]
[1745488592644,0.29174194,597.49,595.65,0.30805069]
[1745488592845,0.29174194,597.49,595.66,0.30805069]
[1745488593046,0.29174194,597.49,595.67,1.37360692]
[1745488593341,0.29174194,597.49,595.68,0.30805069]
[1745488593545,0.29174194,597.49,595.69,0.30805069]
[1745488593747,0.29174194,597.49,595.67,1.06555623]
[1745488593948,0.29174194,597.49,595.68,0.30801741]
[1745488594141,0.29174194,597.49,595.69,0.30801741]
[1745488594345,0.29174194,597.49,595.7,0.30801741]
[1745488594547,0.29174194,597.49,595.68,0.30801741]
[1745488594749,1.27462458,597.52,595.69,0.30801741]
[1745488595048,1.27462458,597.52,595.67,1.06555623]
[1745488595249,1.27462458,597.52,595.43,1.06555623]
[1745488595250,1.27462458,597.53,595.77,1.06555623]
[1745488595444,1.27462458,597.53,595.78,0.30799525]
[1745488595949,0.29169059,597.52,595.78,0.30799525]
[1745488596549,0.29169059,597.52,595.77,1.06555623]
[1745488596742,0.29169059,597.52,595.78,0.3079988]
[1745488597649,1.27462458,597.53,595.78,0.3079988]
[1745488597844,1.27462458,597.67,595.78,0.3079988]
[1745488598148,0.29169059,597.51,595.79,0.3079988]
[1745488598344,1.27462458,597.67,595.8,0.3079988]
[1745488598541,1.27462458,597.67,595.75,0.3079988]
[1745488598746,1.27462458,597.67,595.76,0.3079988]
[1745488599043,0.29167714,597.66,595.75,0.3079988]
[1745488599348,0.29167714,597.66,595.76,0.3079988]
[1745488599554,0.29167714,597.66,595.75,0.3079988]
[1745488600550,0.29167714,597.66,595.74,0.3079988]
[1745488600746,1.27462458,597.9,595.75,0.3079988]
[1745488600943,1.27462458,597.9,595.63,0.3079988]
[1745488601145,1.27462458,597.9,595.64,0.3079988]
[1745488601348,1.27462458,597.9,595.63,0.3079988]
[1745488601952,0.2916637,597.89,595.64,0.2916637]
[1745488602155,0.2916637,597.89,595.65,0.3079988]
[1745488603653,1.27462458,597.94,595.65,0.3079988]
[1745488603852,1.27462458,597.94,595.62,0.3079988]
[1745488604152,0.29166003,597.93,595.63,0.3079988]
[1745488604452,0.29166003,597.93,595.61,1.06555623]
[1745488604650,0.29166003,597.93,595.62,0.30799081]
[1745488605247,0.29166003,597.93,595.63,0.29166003]
[1745488605451,0.29166003,597.93,595.64,0.30799081]
[1745488606049,0.29166003,597.93,595.65,0.30799081]
[1745488606250,0.29166003,597.93,595.66,0.30799081]
[1745488606449,0.29166003,597.93,595.67,0.30799081]
[1745488606647,1.27462458,597.99,595.68,0.30799081]
[1745488606847,1.27462458,597.99,595.69,0.30799081]
[1745488607067,1.27462458,597.99,595.6,1.06555623]
[1745488607068,0.29162704,597.92,595.7,0.30799081]
[1745488607253,1.27462458,597.99,595.71,0.30799081]
[1745488607554,1.27462458,597.99,595.72,0.30799081]
[1745488607754,1.27462458,597.99,595.73,0.30799081]
[1745488607958,1.27462458,598.04,595.74,0.30799081]
[1745488608251,1.27462458,598.04,595.75,0.30799081]
[1745488608455,1.27462458,598.04,595.76,0.30799081]
[1745488608657,1.27462458,598.04,595.77,0.30799081]
[1745488608851,1.27462458,598.04,595.78,0.30799081]
[1745488609052,0.29161848,598.03,595.79,0.30799081]
[1745488609253,0.29161848,598.03,595.66,0.30799081]
[1745488609454,0.29161848,598.03,595.67,0.30799081]
[1745488609657,0.29161848,598.03,595.68,0.30799081]
[1745488609952,0.29161848,598.03,595.69,0.30799081]
[1745488610252,0.29161848,598.03,595.7,0.30799081]
[1745488610451,0.29161848,598.03,595.71,0.30799081]
[1745488610652,0.29161848,598.03,595.76,1.06555623]
[1745488610653,1.27462458,597.88,595.76,1.06555623]
[1745488610852,1.27462458,597.88,595.77,0.30794158]
[1745488611052,1.27462458,597.88,595.78,0.30794158]
[1745488611255,1.27462458,597.88,595.79,0.30794158]
[1745488611457,1.27462458,597.88,595.77,0.30794158]
[1745488611756,1.27462458,597.88,595.78,0.30794158]
[1745488611956,1.27462458,597.88,595.79,0.30794158]
[1745488612152,1.27462458,597.88,595.77,0.30794158]
[1745488612458,1.27462458,597.88,595.78,0.30794158]
[1745488612657,1.27462458,597.89,595.79,0.30794158]
[1745488612856,1.27462458,597.89,595.8,0.30794158]
[1745488613054,0.29162459,597.87,595.76,0.30794158]
[1745488613250,0.29162459,597.87,595.77,0.30794158]
[1745488613452,0.29162459,597.87,595.78,0.30794158]
[1745488613654,0.29162459,597.87,595.79,0.30794158]
[1745488613855,0.29162459,597.87,595.8,0.30794158]
[1745488614052,0.29162459,597.87,595.81,0.30794158]
[1745488614256,0.29162459,597.87,595.82,0.30794158]
[1745488614556,0.29162459,597.87,595.83,0.30794158]
[1745488614756,0.29162459,597.87,595.84,0.30794158]
[1745488614958,0.29162459,597.87,595.85,0.30794158]
[1745488615153,1.27462458,597.8,595.86,0.30794158]
[1745488615357,1.27462458,597.8,595.87,0.30794158]
[1745488615558,1.27462458,597.8,595.82,0.30794158]
[1745488615758,1.27462458,597.8,595.81,1.06555623]
[1745488615759,1.27462458,597.8,595.83,0.30794158]
[1745488615959,1.27462458,597.8,595.84,0.30794158]
[1745488616154,0.29162337,597.79,595.85,0.30794158]
[1745488616362,0.29162337,597.79,595.81,1.06555623]
[1745488616562,0.29162337,597.79,595.86,0.30794253]
[1745488616763,0.29162337,597.79,595.87,0.30794253]
[1745488616962,0.29162337,597.79,595.88,0.30794253]
[1745488617164,0.29162337,597.79,595.81,1.06555623]
[1745488617362,0.29162337,597.79,595.82,0.30794127]
[1745488617564,0.29162337,597.79,595.83,0.30794127]
[1745488617863,0.29162337,597.79,595.84,0.30794127]
[1745488618061,1.27462458,597.73,595.85,0.30794127]
[1745488618264,1.27462458,597.73,595.86,0.30794127]
[1745488618466,1.27462458,597.73,595.87,0.30794127]
[1745488618668,1.27462458,597.73,595.84,1.06555623]
[1745488618869,1.27462458,597.73,595.85,0.30794094]
[1745488619070,1.27462458,597.73,595.86,0.30794094]
[1745488619365,1.27462458,597.73,595.87,0.30794094]
[1745488619568,1.27462458,597.73,595.88,0.30794094]
[1745488619768,1.27462458,597.73,595.89,0.30794094]
[1745488619966,0.29162826,597.72,595.85,0.30794094]
[1745488620270,0.29162826,597.72,595.84,1.06555623]
[1745488620469,0.29162826,597.72,595.85,0.30794365]
[1745488620664,0.29162826,597.72,595.86,0.30794365]
[1745488620867,0.29162826,597.72,595.87,0.30794365]
[1745488621070,0.29162826,597.72,595.88,0.30794365]
[1745488621465,0.29162826,597.72,595.89,0.30794365]
[1745488621664,1.27462458,597.77,595.84,0.30794365]
[1745488621868,1.27462458,597.77,595.85,0.30794365]
[1745488622169,1.27462458,597.77,595.86,0.30794365]
[1745488622369,1.27462458,597.77,595.87,0.30794365]
[1745488622570,1.27462458,597.77,595.88,0.30794365]
[1745488622769,1.27462458,597.77,595.89,0.30794365]
[1745488622970,0.29162459,597.76,595.9,0.30794365]
[1745488623271,0.29162459,597.76,595.83,1.35718082]
[1745488623272,0.29162459,597.76,595.91,0.30794365]
[1745488623471,0.29162459,597.76,595.84,0.30794365]
[1745488623670,0.29162459,597.76,595.85,0.30794365]
[1745488623872,0.29162459,597.76,595.86,0.30794365]
[1745488624074,0.29162459,597.76,595.87,0.30794365]
[1745488624372,0.29162459,597.76,595.88,0.30794365]
[1745488624673,1.27462458,597.77,595.88,0.30794365]
[1745488624874,1.27462458,597.77,595.89,0.30794365]
[1745488625168,1.27462458,597.77,595.9,0.30794365]
[1745488625372,1.27462458,597.77,595.91,0.30794365]
[1745488625672,1.27462458,597.77,595.92,0.30794365]
[1745488625872,1.27462458,597.77,595.93,0.30794365]
[1745488626074,1.27462458,597.71,595.93,0.30794365]
[1745488626275,1.27462458,597.71,595.94,0.30794365]
[1745488626469,1.27462458,597.71,595.89,0.30794365]
[1745488626774,1.27462458,597.71,595.9,0.30794365]
[1745488626973,1.27462458,597.71,595.91,0.30794365]
[1745488627174,1.27462458,597.71,595.92,0.30794365]
[1745488627372,1.27462458,597.71,595.93,0.30794365]
[1745488627573,1.27462458,597.71,595.94,0.30794257]
[1745488627773,1.27462458,597.71,595.95,0.30794257]
[1745488627974,1.27462458,597.71,595.89,0.30794257]
[1745488628174,1.27462458,597.71,595.9,0.30794257]
[1745488628473,1.27462458,597.71,595.91,0.30794257]
[1745488628776,1.27462458,597.71,595.41,0.70892707]
[1745488628777,1.27462458,597.64,595.93,1.06555623]
[1745488629272,1.27462458,597.64,595.94,0.30794219]
[1745488629475,1.27462458,597.64,595.95,0.30794219]
[1745488629672,1.27462458,597.64,595.96,0.30794219]
[1745488629873,1.27462458,597.64,595.97,0.30794219]
[1745488630171,1.27462458,597.64,595.98,0.30794219]
[1745488630371,1.27462458,597.64,595.99,0.30794219]
[1745488630671,1.27462458,597.64,595.94,0.30794219]
[1745488630875,1.27462458,597.64,595.95,0.30794219]
[1745488631075,1.27462458,597.64,595.96,0.30794219]
[1745488631373,1.27462458,597.57,595.97,1.37349842]
[1745488631575,1.27462458,597.57,595.98,0.30794219]
[1745488632077,0.29161726,597.56,595.98,0.30794219]
[1745488633677,1.27462458,597.57,595.98,0.30794219]
[1745488633977,0.29162704,597.55,595.98,0.30794219]
[1745488634172,0.29162704,597.55,595.99,0.30794219]
[1745488634377,0.29162704,597.55,595.95,0.30794219]
[1745488634573,0.29162704,597.55,595.96,0.30794219]
[1745488634776,0.29162704,597.55,595.95,0.30794219]
[1745488634974,0.29162704,597.55,595.96,0.30794219]
[1745488635178,0.29162704,597.55,595.95,0.30794219]
[1745488635377,0.29162704,597.55,595.97,0.30794219]
[1745488635582,0.29162704,597.55,595.98,0.30794219]
[1745488635880,0.29162704,597.55,595.99,0.30794219]
[1745488636081,0.29162704,597.55,595.95,0.30794219]
[1745488636276,0.29162704,597.55,595.96,0.30794219]
[1745488636477,0.29162704,597.55,595.95,0.30794219]
[1745488636677,0.29162704,597.55,595.96,0.30794219]
[1745488636979,0.29162704,597.55,595.95,0.30794219]
[1745488637180,0.29162704,597.55,595.96,0.30794219]
[1745488637378,0.29162704,597.55,595.95,0.30794219]
[1745488637577,0.29162704,597.55,595.96,0.30794219]
[1745488637780,0.29162704,597.55,595.95,0.30794219]
[1745488637981,0.29162704,597.55,595.96,0.30794219]
[1745488638281,0.29162704,597.55,595.95,0.30794219]
[1745488638481,0.29162704,597.55,595.96,0.30794219]
[1745488638678,0.29162704,597.55,595.97,0.30794219]
[1745488638982,0.29162704,597.55,595.98,0.30794219]
[1745488639178,0.29162704,597.55,595.95,0.30794219]
[1745488639383,0.29162704,597.55,595.96,0.30794219]
[1745488639579,0.29162704,597.55,595.95,0.30794219]
[1745488639785,1.27462458,597.92,595.96,0.30794219]
[1745488639984,1.27462458,597.92,595.92,0.30794219]
[1745488640180,1.27462458,597.92,595.93,0.30794219]
[1745488640484,1.27462458,597.92,595.94,0.30794219]
[1745488640679,1.27462458,597.92,595.92,0.30794219]
[1745488640885,1.27462458,597.92,595.93,0.30794219]
[1745488641081,1.27462458,597.89,595.94,0.2915916]
[1745488641287,1.27462458,597.89,595.94,0.59953379]
[1745488641485,1.27462458,597.89,595.95,0.30794219]
[1745488642487,1.27462458,597.89,595.96,0.30794219]
[1745488642689,1.27462458,597.7,596.03,1.06555623]
[1745488643087,1.27462458,597.7,596.04,0.30790626]
[1745488643990,0.29160382,597.69,596.04,0.30790626]
[1745488645691,1.27462458,597.69,596.04,1.37346249]
[1745488645890,1.27462458,597.69,596.05,0.30790626]
[1745488646092,0.29160382,597.68,596.05,0.30790626]
[1745488647793,0.29160382,597.68,596.06,1.06555623]
[1745488647794,1.27462458,597.64,596.06,1.06555623]
[1745488648088,1.27462458,597.64,596.07,0.30790626]
[1745488648994,1.27462458,597.64,596.06,1.06555623]
[1745488649194,1.27462458,597.64,596.07,0.30790332]
[1745488650598,1.27462458,597.64,596.06,1.06555623]
[1745488650897,1.27462458,597.64,596.07,0.30790257]
[1745488651197,1.27462458,597.63,596.07,1.3734588]
[1745488651491,1.27462458,597.63,596.08,0.30790257]
[1745488652091,1.27462458,597.63,596.07,1.06555623]
[1745488652092,0.29160749,597.62,596.07,1.06555623]
[1745488652296,0.29160749,597.62,596.08,0.30790584]
[1745488653095,0.29160749,597.62,596.04,0.30177129]
[1745488653293,0.29160749,597.62,596.03,1.35716372]
[1745488654194,0.29160749,597.62,596.04,0.30786387]
[1745488655202,0.29160749,597.62,596.03,1.35716372]
[1745488655401,0.29160749,597.62,596.04,0.307857]
[1745488657703,1.27462458,597.93,596.04,0.307857]
[1745488658003,1.27462458,597.93,596.05,0.307857]
[1745488658204,1.27462458,597.93,596.03,1.06555623]
[1745488658504,1.27462458,597.93,596.04,0.30780772]
[1745488659105,0.29150489,597.92,596.04,0.30780772]
[1745488659304,0.29150489,597.92,596.05,0.30780772]
[1745488659604,0.29150489,597.92,596.1,1.06555623]
[1745488660005,0.29150489,597.92,596.11,0.30778992]
[1745488660702,1.27462458,597.98,596.11,0.30778992]
[1745488662005,0.29151466,597.97,596.11,0.30778992]
[1745488662705,0.29151466,597.97,596.12,0.30778992]
[1745488663001,0.29151466,597.97,596.13,0.30782238]
[1745488663206,0.29151466,597.97,596.07,0.30782238]
[1745488663407,0.29151466,597.97,596.08,0.30782238]
[1745488663607,0.29151466,597.97,596.09,0.30782238]
[1745488663802,1.27462458,598.34,596.1,0.30782238]
[1745488664107,1.27462458,598.34,596.11,0.30782238]
[1745488664304,1.27462458,598.34,596.12,0.30782238]
[1745488664502,1.27462458,598.34,595.9,1.06555623]
[1745488664503,1.27462458,598.34,595.91,0.30782238]
[1745488664807,1.27462458,598.34,595.9,1.06555623]
[1745488665003,0.29149513,598.33,595.92,0.29149513]
[1745488665206,0.29149513,598.33,595.93,0.30782004]
[1745488665404,1.56611971,598.33,595.93,0.30782004]
[1745488666708,1.27462458,598.33,595.93,0.30782004]
[1745488666908,1.27462458,598.33,595.94,0.30782004]
[1745488667108,1.27462458,598.33,595.95,0.30782004]
[1745488667404,1.27462458,598.33,595.96,0.30782004]
[1745488667608,1.27462458,598.33,595.93,0.30782004]
[1745488667908,1.27462458,598.33,595.94,0.30782004]
[1745488668119,1.27462458,598.31,595.93,0.30782004]
[1745488668404,1.27462458,598.31,595.94,0.30782004]
[1745488668608,1.27462458,598.31,595.95,0.30782004]
[1745488668907,1.27462458,598.31,595.96,0.30782004]
[1745488669208,1.27462458,598.31,595.92,0.29149391]
[1745488669209,1.27462458,598.31,595.97,0.30782004]
[1745488669511,1.27462458,598.31,595.98,0.30782004]
[1745488669809,0.59655779,602.96,595.99,0.30782004]
[1745488670009,0.59655779,602.96,596.0,0.30782004]
[1745488670210,0.59655779,602.96,593.42,0.7086747]
[1745488670410,0.59655779,602.96,593.42,1.01649817]
[1745488670706,0.59655779,602.96,593.43,1.01649817]
[1745488670908,0.59655779,602.96,593.44,1.01649817]
[1745488671111,0.29162704,599.73,593.45,0.30782114]
[1745488671312,0.29162704,599.73,593.46,1.01649817]
[1745488671608,0.29162704,599.73,593.47,1.01649817]
[1745488671812,0.29162704,599.73,593.48,1.01649817]
[1745488672112,1.27619889,597.86,596.12,1.06377212]
[1745488672308,1.27619889,597.86,596.13,0.30782114]
[1745488672512,1.27619889,597.86,596.14,0.30782114]
[1745488672812,1.27619889,597.86,596.15,0.30782114]
[1745488673009,0.29152687,597.85,596.16,0.30782114]
[1745488673208,0.29152687,597.85,596.17,0.30782114]
[1745488673413,0.29152687,597.85,596.18,0.30782114]
[1745488673609,0.29152687,597.85,596.19,0.30782114]
[1745488673913,0.29152687,597.85,596.2,0.30782114]
[1745488674115,0.29152687,597.85,596.13,0.30782114]
[1745488674312,0.29152687,597.85,596.14,0.30782114]
[1745488674510,0.29152687,597.85,596.15,0.30782114]
[1745488674713,0.29152687,597.85,596.16,0.30782114]
[1745488674913,0.29152687,597.85,596.17,0.30782114]